bitfinex/quotes_ETHUSD_20240717
["timestamp","ask_amount","ask_price","bid_price","bid_amount"]
[1721184713767,2.86741,3487.5,3486.2,3.41842]
[1721184714963,3.0,3487.6,3486.5,1.7]
[1721184715165,3.014213,3487.7,3486.5,4.56818]
[1721184715364,2.86696,3488.1,3486.9,1.7]
[1721184715365,5.28636,3488.1,3486.9,1.7]
[1721184715815,2.86698,3488.0,3486.9,1.7]
[1721184716577,2.8653201,3488.0,3486.9,1.7]
[1721184717397,2.4194,3488.1,3486.9,1.7]
[1721184717705,5.28629,3488.1,3486.9,1.7]
[1721184718001,2.4194,3488.1,3487.0,3.324565]
[1721184718322,2.86656,3488.5,3487.2,2.86762]
[1721184718600,5.86664,3488.4,3487.1,2.2587]
[1721184718893,5.86664,3488.4,3487.1,3.8828205]
[1721184718894,1.098702,3488.3,3487.1,3.8828205]
[1721184719108,0.598702,3488.3,3487.2,2.86759]
[1721184719267,3.0,3488.4,3487.3,0.05734359]
[1721184719467,3.0,3488.4,3487.3,0.05734367]
[1721184719863,5.86665,3488.4,3487.2,2.86759]
[1721184720276,3.0,3488.4,3487.2,2.86759]
[1721184720483,3.0,3488.4,3487.1,3.8828205]
[1721184720484,3.0,3488.4,3487.3,3.54256105]
[1721184721310,3.0,3488.4,3487.3,0.67504105]
[1721184721615,3.0,3488.4,3487.2,2.86762]
[1721184721795,2.86672,3488.3,3487.0,2.86778]
[1721184721976,2.86672,3488.3,3487.1,0.55]
[1721184724199,2.86681,3488.2,3487.1,0.55]
[1721184724398,3.740148,3488.2,3487.1,1.348571]
[1721184725320,3.740148,3488.2,3486.7,2.2849]
[1721184725321,2.2821,3488.0,3486.7,2.2849]
[1721184725619,2.86713,3487.8,3486.7,3.0]
[1721184725919,2.86713,3487.8,3486.6,3.0]
[1721184725920,2.86731,3487.6,3486.6,3.0]
[1721184726124,2.86731,3487.6,3486.5,8.98]
[1721184726331,2.86739,3487.5,3486.5,8.98]
[1721184728231,3.382203,3487.7,3486.5,8.98]
[1721184728435,2.86728,3487.7,3486.5,8.98]
[1721184728636,5.1491,3488.0,3486.5,8.98]
[1721184728805,2.86711,3487.9,3486.6,0.55]
[1721184729212,2.86727,3487.7,3486.6,0.55]
[1721184729501,3.668918,3487.7,3486.6,2.0673855]
[1721184730099,2.86731,3487.6,3486.6,1.5173855]
[1721184730330,2.8674,3487.5,3486.6,1.5173855]
[1721184730853,2.8674,3487.5,3486.5,1.7]
[1721184732437,2.86761,3487.3,3486.4,0.29729499]
[1721184732654,2.86761,3487.3,3486.3,3.0]
[1721184733204,2.2807,3487.4,3486.3,3.0]
[1721184733397,5.14816,3487.4,3486.3,4.771697]
[1721184733601,2.86755,3487.3,3486.3,4.771697]
[1721184735050,2.2807,3487.4,3486.2,7.28]
[1721184735250,2.2807,3487.4,3485.9,2.58148854]
[1721184735251,2.86785,3487.0,3485.9,9.86148854]
[1721184735405,2.86785,3487.0,3485.9,12.43068]
[1721184735607,2.86785,3487.0,3485.9,12.72759582]
[1721184736001,2.86779,3487.0,3485.9,12.72759582]
[1721184738550,2.86779,3487.0,3485.9,9.85891582]
[1721184738716,2.86788,3486.9,3485.9,9.85891582]
[1721184739509,2.86788,3486.9,3485.9,2.57891582]
[1721184739928,2.2712,3486.8,3485.9,2.57891582]
[1721184740126,3.0,3487.6,3486.4,2.4662]
[1721184740375,3.0,3487.6,3486.7,1.7]
[1721184740658,2.86718,3487.8,3486.7,1.7]
[1721184740900,3.0,3487.7,3486.7,1.7]
[1721184741047,0.586718,3487.6,3486.7,1.7]
[1721184741626,0.586718,3487.6,3486.5,3.41819]
[1721184743360,0.586718,3487.6,3486.5,0.55]
[1721184744679,0.586718,3487.6,3486.6,2.86812]
[1721184744985,3.0,3487.7,3486.6,2.86812]
[1721184745183,3.0,3487.8,3486.6,2.86812]
[1721184745546,5.86714,3487.8,3486.6,2.86812]
[1721184745921,5.86714,3487.8,3486.7,0.87526]
[1721184747049,3.0,3487.8,3486.7,0.87526]
[1721184747252,7.20952293,3488.2,3486.9,2.3001]
[1721184747253,2.86693,3488.1,3486.9,2.3001]
[1721184747460,3.1698087,3488.2,3487.0,3.41771]
[1721184747648,5.13807,3488.2,3487.0,3.41771]
[1721184747981,2.86694,3488.1,3486.9,5.16796]
[1721184748183,2.86694,3488.1,3487.0,0.97359]
[1721184748402,2.86698,3488.0,3487.0,0.97359]
[1721184749282,2.2712,3488.2,3487.1,2.8677]
[1721184749491,5.2712,3488.2,3487.1,2.8677]
[1721184749794,6.1698087,3488.2,3487.1,2.8677]
[1721184750096,5.2712,3488.2,3487.2,0.42929889]
[1721184750394,6.1698087,3488.2,3487.2,0.42929889]
[1721184750573,6.1698087,3488.2,3487.1,2.8677]
[1721184750903,0.8986087,3488.1,3487.1,2.8677]
[1721184751052,3.8986087,3488.2,3487.2,2.3221]
[1721184751252,0.8986087,3488.3,3487.2,6.88971]
[1721184751489,0.8986087,3488.3,3487.3,1.0731]
[1721184751962,6.7652587,3488.4,3487.3,1.0731]
[1721184752195,0.8986087,3488.3,3487.3,1.0731]
[1721184752826,3.7653587,3488.3,3487.3,1.0731]
[1721184753009,3.8986087,3488.2,3487.2,4.0221]
[1721184753895,6.7654187,3488.2,3487.2,2.3221]
[1721184754105,2.8671,3487.9,3486.8,11.3021]
[1721184754303,2.8671,3487.9,3486.8,9.6021]
[1721184754547,3.53042087,3487.8,3486.8,9.6021]
[1721184754684,4.42902957,3487.8,3486.8,9.6021]
[1721184755122,2.4874,3487.7,3486.8,7.28]
[1721184755333,0.8986087,3487.5,3486.8,7.28]
[1721184755534,0.8986087,3487.4,3486.8,7.28]
[1721184755685,0.8986087,3487.4,3486.4,14.17038]
[1721184756206,3.7660087,3487.5,3486.4,11.3021]
[1721184756424,3.7660687,3487.4,3486.4,11.3021]
[1721184756922,2.86746,3487.4,3486.4,11.3021]
[1721184757923,0.8986087,3487.5,3486.4,11.3021]
[1721184758220,3.7659187,3487.6,3486.4,14.17036]
[1721184758433,3.7659187,3487.6,3486.5,2.92553679]
[1721184758434,0.8986087,3487.6,3486.5,2.92553679]
[1721184758722,3.3860087,3487.7,3486.6,2.86811]
[1721184760229,3.3860087,3487.7,3486.7,2.86802]
[1721184760230,0.8986087,3487.7,3486.7,2.86802]
[1721184760539,3.8986087,3487.7,3486.8,0.573613]
[1721184762309,3.8986087,3487.7,3486.5,2.86815]
[1721184762310,2.2662,3487.5,3486.5,2.86815]
[1721184762514,3.1648087,3487.5,3486.5,2.86815]
[1721184763454,3.1648087,3487.5,3486.4,11.3021]
[1721184763455,6.0322187,3487.5,3486.4,11.3021]
[1721184764423,0.8986087,3487.4,3486.4,11.3021]
[1721184766108,3.7660787,3487.4,3486.4,11.3021]
[1721184766312,3.7660787,3487.4,3486.5,1.417046]
[1721184766515,3.7660787,3487.4,3486.4,4.0221]
[1721184767549,0.8986087,3487.3,3486.4,6.89036]
[1721184767756,0.8986087,3487.5,3486.6,2.86811]
[1721184769136,3.8986087,3487.7,3486.6,2.86811]
[1721184769447,0.8986087,3487.6,3486.7,1.030839]
[1721184770351,0.8986087,3487.6,3486.8,2.3733]
[1721184770567,3.8986087,3487.7,3486.8,2.3733]
[1721184770717,0.8986087,3487.7,3486.9,0.6272179]
[1721184771161,0.8986087,3487.6,3486.9,0.6272179]
[1721184772358,0.8986087,3487.7,3486.9,0.6272179]
[1721184773854,0.8986087,3487.7,3487.1,2.86769]
[1721184774064,1.79800111,3488.4,3487.1,2.86769]
[1721184774065,0.8986087,3488.1,3487.1,2.86769]
[1721184774230,0.8986087,3488.1,3487.2,3.45720357]
[1721184774442,0.8986087,3488.2,3487.3,2.3398]
[1721184774617,0.8986087,3488.1,3487.3,2.3398]
[1721184775025,0.8986087,3488.2,3487.3,2.3398]
[1721184775253,0.8986087,3488.2,3487.3,3.06903054]
[1721184775857,0.8986087,3488.2,3487.3,5.93657054]
[1721184776380,0.8986087,3488.2,3487.3,3.06903054]
[1721184776721,0.8986087,3488.3,3487.3,3.06903054]
[1721184777526,0.8986087,3488.2,3487.3,3.06903054]
[1721184778429,0.8986087,3488.2,3487.4,0.65262441]
[1721184779037,0.8986087,3488.2,3486.9,7.28]
[1721184779038,0.8986087,3487.7,3486.9,7.28]
[1721184779239,0.8986087,3487.6,3486.9,7.28]
[1721184779441,0.8986087,3487.5,3486.9,7.28]
[1721184779729,0.8986087,3487.6,3486.9,7.28]
[1721184780171,0.8986087,3487.6,3486.9,8.537311]
[1721184780849,3.7658287,3487.7,3486.9,8.537311]
[1721184781537,3.7658287,3487.7,3486.0,0.59977315]
[1721184781538,3.3355087,3487.5,3486.0,0.59977315]
[1721184781753,3.3355087,3487.5,3485.9,2.3967]
[1721184781754,2.86783,3487.0,3485.9,2.3967]
[1721184782271,0.8986087,3486.9,3485.9,2.3967]
[1721184782436,0.8986087,3486.9,3486.0,0.696548]
[1721184782639,3.7664387,3487.0,3486.0,0.696548]
[1721184782962,2.86788,3486.9,3486.0,0.696548]
[1721184783170,3.7664887,3486.9,3486.0,0.696548]
[1721184783682,3.7664887,3486.9,3486.1,0.12055719]
[1721184783824,2.293,3486.8,3486.1,0.12055719]
[1721184784027,3.7667387,3486.6,3486.1,0.12055719]
[1721184784276,2.86813,3486.6,3486.1,0.12055719]
[1721184784626,6.35910493,3486.8,3486.1,0.12055719]
[1721184784627,6.0595687,3486.8,3486.1,0.12055719]
[1721184784826,2.86796,3486.8,3486.1,0.12055719]
[1721184786164,2.4212,3486.5,3486.1,0.12055719]
[1721184786367,3.3198087,3486.5,3486.1,0.12055719]
[1721184786660,2.86834,3486.4,3486.1,0.12055719]
[1721184787637,0.8986087,3486.7,3486.1,0.12055719]
[1721184787838,2.86804,3486.7,3486.1,0.12055719]
[1721184788051,2.86804,3486.7,3485.1,6.021]
[1721184788052,0.66345687,3486.6,3485.1,1.49613737]
[1721184788285,2.4028,3485.1,3484.1,0.89965973]
[1721184788571,2.4028,3485.1,3483.6,3.19402257]
[1721184788572,2.416,3484.4,3483.5,0.1516474]
[1721184788773,3.76698463,3484.6,3483.5,0.1516474]
[1721184788934,2.86977,3484.6,3483.5,0.1516474]
[1721184789363,2.86985,3484.5,3483.5,0.1516474]
[1721184789535,2.87011,3484.2,3483.5,0.1516474]
[1721184790492,2.416,3484.5,3483.5,0.1516474]
[1721184790493,2.87042,3483.9,3483.5,0.1516474]
[1721184790807,2.416,3483.6,3483.5,0.1516474]
[1721184790982,8.15718,3483.6,3483.5,0.1516474]
[1721184792075,5.74118,3483.6,3483.5,0.1516474]
[1721184792511,2.87059,3483.6,3483.5,0.1516474]
[1721184792786,5.31154,3483.7,3483.5,0.1516474]
[1721184792958,2.87059,3483.6,3483.5,0.1516474]
[1721184794687,3.688792,3483.6,3483.5,0.1516474]
[1721184795485,2.87029,3484.0,3483.5,0.1516474]
[1721184795946,3.0,3483.9,3483.5,0.1516474]
[1721184796147,5.87036,3483.9,3483.5,0.1516474]
[1721184796969,2.87043,3483.8,3483.5,0.1516474]
[1721184797290,0.587043,3483.7,3483.5,0.1516474]
[1721184798297,5.74118,3483.6,3483.5,0.1516474]
[1721184799358,8.74118,3483.6,3483.5,0.1516474]
[1721184800691,5.87059,3483.6,3483.5,0.1516474]
[1721184801388,8.74118,3483.6,3483.5,0.1516474]
[1721184801571,7.0450123,3483.6,3483.5,0.1516474]
[1721184801756,9.9156023,3483.6,3483.5,0.1516474]
[1721184802491,7.0450123,3483.6,3483.5,0.1516474]
[1721184802897,9.9156023,3483.6,3483.5,0.1516474]
[1721184803603,7.0450123,3483.6,3483.5,0.1516474]
[1721184803769,9.9156023,3483.6,3483.5,0.1516474]
[1721184805522,18.2716923,3483.6,3483.5,0.1516474]
[1721184805714,21.1422823,3483.6,3483.5,0.1516474]
[1721184806016,21.6169203,3483.6,3483.5,0.1516474]
[1721184806380,22.1669203,3483.6,3483.5,0.1516474]
[1721184807811,22.1669203,3483.6,3483.5,7.4e-06]
[1721184808177,22.57787715,3483.6,3483.5,7.4e-06]
[1721184808906,18.7463303,3483.6,3483.5,7.4e-06]
[1721184811082,22.1669203,3483.6,3483.5,7.4e-06]
[1721184813409,22.60881712,3483.6,3483.5,7.4e-06]
[1721184813923,25.47940712,3483.6,3483.5,7.4e-06]
[1721184814278,22.60881712,3483.6,3483.5,7.4e-06]
[1721184814785,27.34540712,3483.6,3483.5,7.4e-06]
[1721184814982,27.34540712,3483.6,3481.5,7.57751108]
[1721184814983,2.87183,3482.1,3481.5,7.57751108]
[1721184815184,2.87183,3482.1,3481.6,0.75969115]
[1721184815398,2.87183,3482.1,3481.4,0.0194004]
[1721184816040,2.87166,3482.3,3481.4,0.0194004]
[1721184817485,2.87176,3482.2,3481.4,0.0194004]
[1721184817691,2.87151,3482.5,3481.4,0.0194004]
[1721184818195,3.0,3483.1,3481.5,2.3223]
[1721184818420,2.87133,3482.8,3481.6,0.23417004]
[1721184818624,2.87129,3482.8,3481.6,0.23417004]
[1721184819181,2.87163,3482.4,3481.6,0.23417004]
[1721184819391,2.87169,3482.3,3481.6,0.23417004]
[1721184819590,2.87175,3482.2,3481.5,2.3223]
[1721184821297,2.87199,3481.9,3481.4,0.0194004]
[1721184821497,2.87221,3481.7,3481.4,0.0194004]
[1721184822196,2.87224,3481.6,3481.4,0.0194004]
[1721184822417,2.87232,3481.5,3481.4,0.0194004]
[1721184823740,6.319096,3481.5,3481.4,0.0194004]
[1721184823946,11.53062409,3481.5,3481.4,0.0194004]
[1721184825398,11.03296,3481.5,3481.4,0.0194004]
[1721184827136,5.74464,3481.5,3481.4,0.0194004]
[1721184827567,8.61696,3481.5,3481.4,0.0194004]
[1721184827769,9.478656,3481.5,3481.4,0.0194004]
[1721184828553,6.606336,3481.5,3481.4,0.0194004]
[1721184829465,6.106336,3481.5,3481.4,0.0194004]
[1721184830172,2.87169,3482.3,3481.4,0.0194004]
[1721184830353,2.87174,3482.2,3481.4,0.0194004]
[1721184830558,2.416,3482.9,3481.4,0.0194004]
[1721184830559,2.87163,3482.4,3481.4,0.0194004]
[1721184830867,2.87144,3482.6,3481.4,0.0194004]
[1721184831102,2.87133,3482.7,3481.5,2.3725]
[1721184831277,2.87133,3482.7,3481.6,0.52642404]
[1721184831571,8.372,3483.4,3481.6,0.52642404]
[1721184831572,2.87078,3483.4,3481.8,2.87207]
[1721184831771,10.35029,3484.0,3482.1,2.87182]
[1721184831772,2.87085,3483.3,3482.1,2.87182]
[1721184831944,2.87093,3483.2,3482.1,2.87182]
[1721184832471,2.87112,3483.0,3481.6,6.39864404]
[1721184832773,2.87104,3483.1,3481.8,2.87207]
[1721184832980,2.87109,3483.0,3481.9,3.0]
[1721184833133,2.87093,3483.2,3481.9,3.0]
[1721184833134,2.87117,3482.9,3481.9,3.0]
[1721184833651,2.87117,3482.9,3481.8,5.87204]
[1721184835554,5.74193,3483.2,3482.0,2.87186]
[1721184835755,2.87078,3483.4,3482.1,0.46245409]
[1721184836118,2.87084,3483.3,3482.1,0.46245409]
[1721184836448,2.87092,3483.2,3482.1,0.46245409]
[1721184837256,2.87101,3483.1,3482.1,0.46245409]
[1721184837459,2.87101,3483.1,3482.2,0.52642404]
[1721184837686,2.87101,3483.1,3481.8,3.0]
[1721184837687,2.87163,3482.4,3481.5,2.3725]
[1721184838998,2.8718,3482.2,3481.4,0.0194004]
[1721184839153,2.87199,3481.9,3481.4,0.0194004]
[1721184840189,2.87216,3481.7,3481.4,0.0194004]
[1721184841811,2.87199,3481.9,3481.4,0.0194004]
[1721184842169,2.87192,3482.0,3481.4,0.0194004]
[1721184842414,2.872,3481.9,3481.4,0.0194004]
[1721184842918,5.28722,3482.9,3481.4,0.0194004]
[1721184843068,6.87827346,3482.8,3481.4,0.0194004]
[1721184843265,2.87222,3481.7,3481.4,0.0194004]
[1721184843478,2.416,3482.5,3481.4,0.0194004]
[1721184843479,5.28751,3482.5,3481.4,0.0194004]
[1721184843701,2.87205,3481.9,3481.4,0.0194004]
[1721184843879,2.87209,3481.8,3481.4,0.0194004]
[1721184844385,2.87217,3481.7,3481.4,0.0194004]
[1721184845466,2.8721,3481.8,3481.4,0.0194004]
[1721184845979,2.87196,3482.0,3481.4,0.0194004]
[1721184847614,2.87176,3482.2,3481.4,0.0194004]
[1721184847916,2.87176,3482.2,3481.4,0.26208044]
[1721184848207,2.87159,3482.4,3481.4,0.26208044]
[1721184849168,2.87168,3482.3,3481.4,0.26208044]
[1721184850207,2.87156,3482.5,3481.4,0.26208044]
[1721184850434,2.87159,3482.4,3481.4,0.26208044]
[1721184851516,2.8715,3482.5,3481.4,0.26208044]
[1721184851721,2.8715,3482.5,3481.5,0.55418904]
[1721184851866,2.87158,3482.4,3481.5,0.55418904]
[1721184852072,2.8715,3482.5,3481.5,0.55418904]
[1721184852386,2.87191,3482.0,3481.4,0.0194004]
[1721184852719,2.87167,3482.3,3481.4,0.0194004]
[1721184853212,2.87175,3482.2,3481.4,0.0194004]
[1721184853370,2.87175,3482.2,3481.4,0.26208044]
[1721184853774,2.87185,3482.1,3481.4,0.26208044]
[1721184854818,0.89721463,3482.6,3481.4,0.26208044]
[1721184855018,2.87145,3482.6,3481.4,3.13447044]
[1721184855201,2.87145,3482.6,3481.5,0.84144104]
[1721184856304,2.87145,3482.6,3481.5,3.71375104]
[1721184856875,2.87145,3482.6,3481.5,3.66375104]
[1721184857297,3.0,3482.9,3481.6,5.71208]
[1721184857814,2.87135,3482.7,3481.6,5.71208]
[1721184857974,2.87135,3482.7,3481.7,0.96379815]
[1721184858774,2.87155,3482.5,3481.7,0.96379815]
[1721184858974,2.87155,3482.5,3481.6,2.2899]
[1721184860078,2.87171,3482.3,3481.4,0.0194004]
[1721184860614,2.87175,3482.2,3481.4,0.0194004]
[1721184861408,2.87191,3482.0,3481.4,0.0194004]
[1721184861613,0.287191,3482.0,3481.4,0.0194004]
[1721184861824,2.87229,3481.6,3481.4,0.0194004]
[1721184862314,2.87232,3481.5,3481.4,0.0194004]
[1721184862693,5.74464,3481.5,3481.4,0.0194004]
[1721184863687,5.74464,3481.5,3481.4,0.0208504]
[1721184867203,2.87232,3481.5,3481.4,0.0208504]
[1721184868441,3.446778,3481.5,3481.4,0.0208504]
[1721184869530,6.319098,3481.5,3481.4,0.0208504]
[1721184876542,9.191418,3481.5,3481.4,0.0208504]
[1721184877665,15.52383263,3481.5,3481.4,0.0208504]
[1721184878222,14.626618,3481.5,3481.4,0.0208504]
[1721184878834,15.82476293,3481.5,3481.4,0.0208504]
[1721184880427,14.626618,3481.5,3481.4,0.0208504]
[1721184881360,15.82476293,3481.5,3481.4,0.0208504]
[1721184881539,14.626618,3481.5,3481.4,0.0208504]
[1721184881865,15.82476293,3481.5,3481.4,0.0208504]
[1721184882066,20.519938,3481.5,3481.4,0.0208504]
[1721184882263,22.01047119,3481.5,3481.4,0.0208504]
[1721184883936,14.626618,3481.5,3481.4,0.0208504]
[1721184884135,15.81911086,3481.5,3481.4,0.0208504]
[1721184884729,10.51159086,3481.5,3481.4,0.0208504]
[1721184884945,5.74464,3481.5,3481.4,0.0208504]
[1721184886963,2.87232,3481.5,3481.4,0.0208504]
[1721184890237,5.74464,3481.5,3481.4,0.0208504]
[1721184890446,8.61696,3481.5,3481.4,0.0208504]
[1721184890773,5.74464,3481.5,3481.4,0.0208504]
[1721184890963,7.05661556,3481.5,3481.4,0.0208504]
[1721184892436,9.92893556,3481.5,3481.4,0.0208504]
[1721184895165,12.19833556,3481.5,3481.4,0.0208504]
[1721184895364,13.09269831,3481.5,3481.4,0.0208504]
[1721184896211,13.09255319,3481.5,3481.4,0.0208504]
[1721184896471,12.19833556,3481.5,3481.4,0.0208504]
[1721184897264,13.39082842,3481.5,3481.4,0.0208504]
[1721184898887,12.19833556,3481.5,3481.4,0.0208504]
[1721184899675,18.07065556,3481.5,3481.4,0.0208504]
[1721184900166,15.19833556,3481.5,3481.4,0.0208504]
[1721184900641,18.07065556,3481.5,3481.4,0.0208504]
[1721184900841,15.19833556,3481.5,3481.4,0.0208504]
[1721184901074,18.07065556,3481.5,3481.4,0.0208504]
[1721184901477,15.19833556,3481.5,3481.4,0.0208504]
[1721184902596,18.07065556,3481.5,3481.4,0.0208504]
[1721184902989,12.92893556,3481.5,3481.4,0.0208504]
[1721184904875,10.05661556,3481.5,3481.4,0.0208504]
[1721184905078,8.74464,3481.5,3481.4,0.0208504]
[1721184906613,5.87232,3481.5,3481.4,0.0208504]
[1721184906968,2.87205,3481.9,3481.4,0.0208504]
[1721184907395,2.87205,3481.9,3481.5,0.05989378]
[1721184907603,2.87188,3482.1,3481.5,0.05989378]
[1721184908310,2.87158,3482.4,3481.5,0.05989378]
[1721184908484,2.87158,3482.4,3481.6,2.3797]
[1721184908680,2.87172,3482.3,3481.7,0.24604442]
[1721184910015,3.76890776,3482.3,3481.7,0.24604442]
[1721184910385,2.87172,3482.3,3481.7,0.24604442]
[1721184911027,0.89718776,3482.4,3481.7,0.24604442]
[1721184911184,2.8716,3482.4,3481.7,0.24604442]
[1721184911525,2.87166,3482.3,3481.8,0.26856382]
[1721184912108,3.76872776,3482.5,3481.8,0.26856382]
[1721184912420,2.87144,3482.6,3481.8,0.26856382]
[1721184912720,3.0,3482.5,3481.8,0.26856382]
[1721184913097,5.8715,3482.5,3481.8,0.26856382]
[1721184915914,2.87189,3482.1,3481.6,2.3797]
[1721184916231,3.0,3482.5,3481.5,0.05989378]
[1721184916232,2.87159,3482.4,3481.5,0.05989378]
[1721184916424,2.87217,3481.7,3481.5,0.05989378]
[1721184918951,0.89718776,3482.2,3481.5,0.05989378]
[1721184919098,2.87188,3482.1,3481.5,0.05989378]
[1721184919303,3.89718776,3482.4,3481.5,0.05989378]
[1721184919304,2.87198,3482.0,3481.5,0.05989378]
[1721184919608,2.87219,3481.7,3481.5,0.05989378]
[1721184920738,2.87224,3481.6,3481.5,0.05989378]
[1721184920948,5.74448,3481.6,3481.5,0.05989378]
[1721184921301,9.51390776,3481.6,3481.5,0.05989378]
[1721184921428,12.81297035,3481.6,3481.5,0.05989378]
[1721184921635,15.02877634,3481.6,3481.5,0.05989378]
[1721184922332,13.83252599,3481.6,3481.5,0.05989378]
[1721184922846,15.02877634,3481.6,3481.5,0.05989378]
[1721184923354,13.83252599,3481.6,3481.5,0.05989378]
[1721184923713,15.02877634,3481.6,3481.5,0.05989378]
[1721184923949,11.85490363,3481.6,3481.5,0.05989378]
[1721184924452,8.74448,3481.6,3481.5,0.05989378]
[1721184925762,9.63909764,3481.6,3481.5,0.05989378]
[1721184926756,8.74448,3481.6,3481.5,0.05989378]
[1721184927451,5.87224,3481.6,3481.5,0.05989378]
[1721184928061,3.0,3481.6,3481.5,0.05989378]
[1721184928804,5.87224,3481.6,3481.5,0.05989378]
[1721184929081,6.83612576,3481.6,3481.5,0.05989378]
[1721184929554,5.87224,3481.6,3481.5,0.05989378]
[1721184932080,3.0,3481.6,3481.5,0.05989378]
[1721184934260,0.89461764,3481.9,3481.5,0.05989378]
[1721184934564,3.76633764,3482.3,3481.5,0.05989378]
[1721184935078,2.87172,3482.3,3481.5,0.05989378]
[1721184935477,0.89461764,3482.4,3481.5,0.05989378]
[1721184935706,3.76613764,3482.5,3481.6,0.29531242]
[1721184936000,2.87152,3482.5,3481.7,2.3731]
[1721184936480,3.76595764,3482.7,3481.7,2.3731]
[1721184936998,3.0,3482.6,3481.7,2.3731]
[1721184937167,0.89461764,3482.8,3481.7,2.3731]
[1721184937360,0.89461764,3483.8,3482.5,9.51]
[1721184937606,1.78849404,3484.4,3482.5,9.51]
[1721184937607,0.89461764,3484.0,3482.9,4.57115]
[1721184937809,2.87016,3484.2,3483.0,2.87108]
[1721184938009,3.76477764,3484.2,3483.0,2.87108]
[1721184938316,2.87016,3484.2,3483.0,2.87108]
[1721184938600,2.87032,3484.0,3483.1,0.574231]
[1721184940598,2.87034,3483.9,3483.1,0.574231]
[1721184941739,5.86995,3484.4,3483.2,2.494]
[1721184941903,2.87018,3484.1,3483.2,2.494]
[1721184942425,3.0,3484.3,3483.2,2.494]
[1721184942928,3.0,3484.3,3483.2,5.3649]
[1721184943109,3.0,3484.4,3483.2,5.3649]
[1721184943315,3.0,3484.4,3483.3,1.373598]
[1721184943499,3.0,3484.6,3483.5,2.87067]
[1721184943922,3.0,3484.7,3483.5,2.87067]
[1721184944418,3.0,3484.7,3483.6,2.494]
[1721184944623,5.89019,3485.4,3483.7,2.21868843]
[1721184944624,2.86928,3485.2,3483.7,2.21868843]
[1721184944826,2.86935,3485.1,3483.9,2.87033]
[1721184945517,2.86919,3485.3,3483.9,2.87033]
[1721184945945,2.86928,3485.2,3484.0,2.87023]
[1721184946110,2.86928,3485.2,3483.8,2.416]
[1721184946111,2.86874,3485.9,3484.1,0.29531242]
[1721184946310,2.86874,3485.9,3483.8,2.416]
[1721184946311,2.8693,3485.2,3484.0,2.87024]
[1721184946829,2.8693,3485.2,3484.1,2.87017]
[1721184947219,2.86911,3485.4,3484.1,2.87017]
[1721184947567,2.86874,3485.9,3484.1,2.87017]
[1721184947568,3.0,3485.3,3484.1,2.87017]
[1721184947718,3.0,3485.4,3484.2,0.287017]
[1721184949352,2.86928,3485.2,3484.2,0.287017]
[1721184950717,3.0,3485.4,3484.2,0.287017]
[1721184950958,2.86967,3484.8,3483.7,0.51868843]
[1721184951661,3.0,3485.1,3483.7,0.51868843]
[1721184951662,2.86995,3484.4,3483.7,0.51868843]
[1721184951859,2.86995,3484.4,3483.6,2.494]
[1721184952277,2.86981,3484.6,3483.6,2.494]
[1721184952476,2.86985,3484.5,3483.6,2.494]
[1721184952993,2.86951,3485.0,3483.6,5.36456]
[1721184953454,2.86969,3484.7,3483.6,5.36456]
[1721184953654,2.86969,3484.7,3483.7,0.823522]
[1721184954493,2.86977,3484.6,3483.7,0.823522]
[1721184954653,2.86977,3484.6,3483.6,2.494]
[1721184955562,2.86961,3484.8,3483.6,2.494]
[1721184955896,2.8696,3484.8,3483.7,3.42046]
[1721184956493,3.0,3484.9,3483.7,3.42046]
[1721184956694,3.0,3484.9,3483.7,5.12046]
[1721184956999,5.86952,3484.9,3483.8,1.048498]
[1721184957586,2.86923,3485.3,3484.1,4.017]
[1721184958160,2.86897,3485.6,3484.3,2.86995]
[1721184958371,2.86903,3485.5,3484.3,2.86995]
[1721184958676,2.86903,3485.5,3484.4,0.32556447]
[1721184958878,2.86912,3485.4,3484.4,0.32556447]
[1721184959064,2.86912,3485.4,3484.2,2.317]
[1721184959065,3.0,3485.3,3484.2,2.317]
[1721184959265,3.0,3485.3,3484.3,0.55]
[1721184959471,3.0,3485.3,3484.3,3.42001]
[1721184960873,3.0,3485.3,3484.3,0.55]
[1721184961069,5.8692,3485.3,3484.4,0.743712]
[1721184961699,3.0,3485.3,3484.4,0.743712]
[1721184961898,3.0,3485.4,3484.4,0.743712]
[1721184962925,2.86888,3485.7,3484.4,0.743712]
[1721184962926,2.86888,3485.7,3484.5,1.7]
[1721184963062,3.0,3485.6,3484.5,4.56984]
[1721184963409,2.86878,3485.8,3484.6,3.33258856]
[1721184963893,2.86887,3485.7,3484.6,3.33258856]
[1721184964074,2.86895,3485.6,3484.6,3.27520047]
[1721184964273,2.86895,3485.6,3484.6,0.40545047]
[1721184965296,2.86904,3485.5,3484.6,0.40545047]
[1721184965497,2.86904,3485.5,3484.7,0.40190325]
[1721184965886,2.8692,3485.3,3484.4,0.743712]
[1721184970824,2.86929,3485.2,3484.4,0.743712]
[1721184971329,2.86938,3485.1,3484.2,2.317]
[1721184971483,2.86961,3484.8,3483.7,2.4452]
[1721184971688,2.416,3485.2,3483.3,2.74072208]
[1721184971889,2.87019,3484.1,3483.3,2.74072208]
[1721184972090,2.87037,3483.9,3483.3,2.4452]
[1721184972335,2.87037,3483.9,3482.8,2.87122]
[1721184972336,2.87043,3483.8,3482.8,2.4811]
[1721184972926,2.87043,3483.8,3482.8,5.35235]
[1721184973129,2.87043,3483.8,3482.8,2.4811]
[1721184973430,2.87043,3483.8,3482.9,1.26325]
[1721184973634,2.87059,3483.6,3482.9,1.26325]
[1721184974621,2.87069,3483.5,3482.9,1.26325]
[1721184974927,2.87069,3483.5,3482.8,2.4811]
[1721184976538,2.77069,3483.5,3482.8,2.4811]
[1721184978834,2.87059,3483.6,3482.8,2.4811]
[1721184979024,2.87067,3483.5,3482.8,2.4811]
[1721184979224,2.87067,3483.5,3482.9,0.24811]
[1721184979935,2.87043,3483.8,3482.9,0.24811]
[1721184980112,2.8706,3483.6,3482.9,0.24811]